fUSD/lending_fUSD_20250514
["ID","MTS","AMOUNT","RATE_DAILY","PERIOD"]
[361101815,1747257046363,-500.0,0.00011188,2]
[361101816,1747257046373,-626.72,0.00011188,2]
[361101817,1747257046383,-434.15,0.00011188,2]
[361101818,1747257046392,-610.86,0.00011188,2]
[361101819,1747257046402,-400.0,0.00011188,2]
[361101820,1747257046412,-454.44691342,0.00011188,2]
[361101821,1747257046421,-200.0,0.00011189,2]
[361101822,1747257046431,-537.44,0.00011189,2]
[361101823,1747257046442,-400.0,0.00011189,2]
[361101824,1747257046451,-373.31842006,0.00011189,2]
[361101825,1747257046460,-555.0,0.00011189,2]
[361101826,1747257046469,-349.87236364,0.00011189,2]
[361101827,1747257046478,-400.0,0.00011189,2]
[361101828,1747257046487,-779.92,0.00011189,2]
[361101829,1747257046497,-734.83,0.00011189,2]
[361101830,1747257046507,-500.0,0.00011189,2]
[361101831,1747257046517,-400.0,0.00011189,2]
[361101832,1747257046527,-400.0,0.00011189,2]
[361101833,1747257046536,-500.0,0.00011189,2]
[361101834,1747257046545,-500.0,0.00011189,2]
[361101835,1747257046555,-400.0,0.00011189,2]
[361101836,1747257046564,-400.0,0.00011189,2]
[361101837,1747257046573,-500.0,0.00011189,2]
[361101838,1747257046582,-500.0,0.00011189,2]
[361101839,1747257046591,-159.038732,0.00011189,2]
[361101840,1747257046601,-400.0,0.00011189,2]
[361101841,1747257046610,-400.0,0.00011189,2]
[361101842,1747257046619,-321.6055193,0.00011189,2]
[361101843,1747257046628,-400.0,0.00011189,2]
[361101844,1747257046637,-400.0,0.00011189,2]
[361101845,1747257046648,-400.0,0.00011189,2]
[361101846,1747257046659,-500.0,0.00011189,2]
[361101847,1747257046668,-400.0,0.00011189,2]
[361101848,1747257046678,-500.0,0.00011189,2]
[361101849,1747257046687,-400.0,0.00011189,2]
[361101850,1747257046696,-500.0,0.00011189,2]
[361101851,1747257046705,-400.0,0.00011189,2]
[361101852,1747257046714,-500.0,0.00011189,2]
[361101853,1747257046723,-400.0,0.00011189,2]
[361101854,1747257046732,-400.0,0.00011189,2]
[361101855,1747257046742,-500.0,0.00011189,2]
[361101856,1747257046751,-500.0,0.00011189,2]
[361101857,1747257046761,-400.0,0.00011189,2]
[361101858,1747257046771,-400.0,0.00011189,2]
[361101859,1747257046779,-400.0,0.00011189,2]
[361101860,1747257046789,-400.0,0.00011189,2]
[361101861,1747257046798,-400.0,0.00011189,2]
[361101862,1747257046807,-234.13750042,0.00011189,2]
[361101863,1747257046817,-400.0,0.00011189,2]
[361101864,1747257046827,-952.39,0.00011189,2]
[361101865,1747257046836,-400.0,0.00011189,2]
[361101866,1747257046845,-400.0,0.00011189,2]
[361101867,1747257046855,-384.49,0.00011189,2]
[361101868,1747257046864,-400.0,0.00011189,2]
[361101869,1747257046873,-407.91,0.00011189,2]
[361101870,1747257046883,-400.0,0.00011189,2]
[361101871,1747257046894,-400.0,0.00011189,2]
[361101872,1747257046903,-533.71,0.00011189,2]
[361101873,1747257046913,-400.0,0.00011189,2]
[361101874,1747257046923,-500.0,0.00011189,2]
[361101875,1747257046932,-432.58,0.00011189,2]
[361101876,1747257046941,-400.0,0.00011189,2]
[361101877,1747257046951,-160.04909162,0.00011189,2]
[361101878,1747257046960,-450.0,0.00011189,2]
[361101879,1747257046970,-471.57,0.00011189,2]
[361101880,1747257046979,-400.0,0.00011189,2]
[361101881,1747257046989,-400.0,0.00011189,2]
[361101882,1747257046999,-225.72,0.00011189,2]
[361101883,1747257047008,-429.08,0.00011189,2]
[361101884,1747257047018,-602.22,0.00011189,2]
[361101885,1747257047027,-450.0,0.00011189,2]
[361101886,1747257047036,-290.1,0.00011189,2]
[361101887,1747257047046,-400.0,0.00011189,2]
[361101888,1747257047056,-400.0,0.00011189,2]
[361101889,1747257047066,-400.0,0.00011189,2]
[361101890,1747257047076,-500.0,0.00011189,2]
[361101891,1747257047086,-513.46,0.00011189,2]
[361101892,1747257047095,-450.0,0.00011189,2]
[361101893,1747257047105,-400.0,0.00011189,2]
[361101894,1747257047115,-1002.72,0.00011189,2]
[361101895,1747257047125,-221.18,0.00011189,2]
[361101896,1747257047135,-400.0,0.00011189,2]
[361101897,1747257047144,-400.0,0.00011189,2]
[361101898,1747257047154,-400.0,0.00011189,2]
[361101899,1747257047164,-450.0,0.00011189,2]
[361101900,1747257047173,-525.78095456,0.00011189,2]
[361101901,1747257047182,-400.0,0.00011189,2]
[361101902,1747257047191,-400.0,0.00011189,2]
[361101903,1747257047201,-400.0,0.00011189,2]
[361101904,1747257047211,-400.0,0.00011189,2]
[361101905,1747257047220,-400.0,0.00011189,2]
[361101906,1747257047229,-400.0,0.00011189,2]
[361101907,1747257047238,-450.0,0.00011189,2]
[361101908,1747257047247,-400.0,0.00011189,2]
[361101909,1747257047256,-400.0,0.00011189,2]
[361101910,1747257047266,-450.0,0.00011189,2]
[361101911,1747257047275,-400.0,0.00011189,2]
[361101912,1747257047284,-400.0,0.00011189,2]
[361101913,1747257047293,-400.0,0.00011189,2]
[361101914,1747257047302,-400.0,0.00011189,2]
[361101915,1747257047311,-450.0,0.00011189,2]
[361101916,1747257047320,-400.0,0.00011189,2]
[361101917,1747257047329,-400.0,0.00011189,2]
[361101918,1747257047339,-400.0,0.00011189,2]
[361101919,1747257047348,-400.0,0.00011189,2]
[361101920,1747257047357,-400.0,0.00011189,2]
[361101921,1747257047367,-400.0,0.00011189,2]
[361101922,1747257047376,-1407.01241519,0.00011189,2]
[361101923,1747257047386,-2081.7,0.00011233,2]
[361101924,1747257047396,-200.0,0.00011278,2]
[361101925,1747257047405,-200.0,0.00011301,2]
[361101926,1747257047414,-200.0,0.00011321,2]
[361101927,1747257047425,-864.05076374,0.00011329,2]
[361101928,1747257047434,-6822.0,0.00011348,2]
[361101929,1747257047443,-134.2922221,0.00011348,2]
[361101930,1747257047489,-744.7077779,0.00011348,2]
[361101931,1747257047499,-154.0,0.00011348,2]
[361101932,1747257047508,-4032.0,0.00011348,2]
[361101933,1747257047518,-5940.0,0.00011348,2]
[361101934,1747257047527,-1147.0,0.00011348,2]
[361101935,1747257047537,-533.19112047,0.00011363,2]
[361101936,1747257047546,-270.34033556,0.00011363,2]
[361101937,1747257047555,-5056.29516332,0.00011388,2]
[361101938,1747257047564,-250.0,0.00011389,2]
[361101939,1747257047574,-4446.889465,0.00011391,2]
[361101940,1747257047583,-200.0,0.00011414,2]
[361101941,1747257047592,-150.0,0.00011416,2]
[361101942,1747257047602,-180.729,0.00011416,2]
[361101943,1747257047611,-150.0,0.00011416,2]
[361101944,1747257047620,-1190.391,0.00011416,2]
[361101945,1747257047629,-931.0,0.00011416,2]
[361101946,1747257047639,-349.706,0.00011416,2]
[361101947,1747257047648,-798.0,0.00011416,2]
[361101948,1747257047660,-919.0,0.00011416,2]
[361101949,1747257047670,-567.02,0.00011416,2]
[361101950,1747257047680,-1457.0,0.00011416,2]
[361101951,1747257047688,-553.0,0.00011416,2]
[361101952,1747257047699,-339.86275883,0.00011451,2]
[361101953,1747257047708,-416.81,0.0001146,2]
[361101954,1747257047719,-557.92,0.0001146,2]
[361101955,1747257047730,-400.0,0.0001146,2]
[361101956,1747257047739,-400.0,0.0001146,2]
[361101957,1747257047749,-400.0,0.0001146,2]
[361101958,1747257047759,-400.0,0.0001146,2]
[361101959,1747257047769,-400.0,0.0001146,2]
[361101960,1747257047779,-699.56,0.0001146,2]
[361101961,1747257047789,-494.71,0.0001146,2]
[361101962,1747257047798,-400.0,0.00011461,2]
[361101963,1747257047809,-280.84,0.00011461,2]
[361101964,1747257047819,-400.0,0.00011461,2]
[361101965,1747257047829,-400.0,0.00011461,2]
[361101966,1747257047839,-278.63360781,0.00011461,2]
[361101967,1747257047849,-400.0,0.00011461,2]
[361101968,1747257047859,-508.69,0.00011461,2]
[361101969,1747257047868,-400.0,0.00011461,2]
[361101970,1747257047878,-500.0,0.00011461,2]
[361101971,1747257047888,-357.08,0.00011461,2]
[361101972,1747257047898,-456.01,0.00011461,2]
[361101973,1747257047908,-400.0,0.00011461,2]
[361101974,1747257047917,-388.00139032,0.00011461,2]
[361101975,1747257047927,-226.04815169,0.00011461,2]
[361101976,1747257047936,-437.56,0.00011461,2]
[361101977,1747257047946,-817.8,0.00011461,2]
[361101978,1747257047955,-400.0,0.00011461,2]
[361101979,1747257047964,-400.0,0.00011461,2]
[361101980,1747257047974,-530.78,0.00011461,2]
[361101981,1747257047984,-400.0,0.00011461,2]
[361101982,1747257047993,-400.0,0.00011461,2]
[361101983,1747257048002,-432.33,0.00011461,2]
[361101984,1747257048012,-619.84,0.00011461,2]
[361101985,1747257048021,-400.0,0.00011461,2]
[361101986,1747257048031,-400.0,0.00011461,2]
[361101987,1747257048041,-400.0,0.00011461,2]
[361101988,1747257048051,-400.0,0.00011461,2]
[361101989,1747257048060,-200.0,0.00011461,2]
[361101990,1747257048070,-537.46,0.00011461,2]
[361101991,1747257048080,-564.11,0.00011461,2]
[361101992,1747257048089,-400.0,0.00011461,2]
[361101993,1747257048098,-1594.02,0.00011461,2]
[361101994,1747257048108,-400.0,0.00011461,2]
[361101995,1747257048117,-450.0,0.00011461,2]
[361101996,1747257048127,-400.0,0.00011461,2]
[361101997,1747257048136,-150.0,0.00011461,2]
[361101998,1747257048146,-349.12103181,0.00011461,2]
[361101999,1747257048155,-400.0,0.00011461,2]
[361102000,1747257048165,-150.0,0.00011461,2]
[361102001,1747257048174,-400.0,0.00011461,2]
[361102002,1747257048183,-426.25,0.00011461,2]
[361102003,1747257048192,-400.0,0.00011461,2]
[361102004,1747257048202,-221.07844008,0.00011461,2]
[361102005,1747257048213,-758.52,0.00011461,2]
[361102006,1747257048223,-400.0,0.00011461,2]
[361102007,1747257048232,-150.0,0.00011461,2]
[361102008,1747257048242,-400.0,0.00011461,2]
[361102009,1747257048251,-400.0,0.00011461,2]
[361102010,1747257048260,-400.0,0.00011461,2]
[361102011,1747257048270,-400.0,0.00011461,2]
[361102012,1747257048279,-400.0,0.00011461,2]
[361102013,1747257048288,-400.0,0.00011461,2]
[361102014,1747257048298,-400.0,0.00011461,2]
[361102015,1747257048307,-460.16,0.00011461,2]
[361102016,1747257048317,-400.0,0.00011461,2]
[361102017,1747257048326,-400.0,0.00011461,2]
[361102018,1747257048336,-400.0,0.00011461,2]
[361102019,1747257048345,-400.0,0.00011461,2]
[361102020,1747257048355,-168.492818,0.00011461,2]
[361102021,1747257048364,-170.77,0.00011461,2]
[361102022,1747257048374,-512.84,0.00011461,2]
[361102023,1747257048383,-400.0,0.00011461,2]
[361102024,1747257048392,-400.0,0.00011461,2]
[361102025,1747257048402,-400.0,0.00011461,2]
[361102026,1747257048411,-400.0,0.00011461,2]
[361102027,1747257048421,-151.0,0.00011461,2]
[361102028,1747257048430,-400.0,0.00011461,2]
[361102029,1747257048440,-400.0,0.00011461,2]
[361102030,1747257048449,-400.0,0.00011461,2]
[361102031,1747257048458,-400.0,0.00011461,2]
[361102032,1747257048468,-400.0,0.00011461,2]
[361102033,1747257048477,-1000.0,0.00011461,2]
[361102034,1747257048486,-400.0,0.00011461,2]
[361102035,1747257048496,-400.0,0.00011461,2]
[361102036,1747257048505,-432.1,0.00011461,2]
[361102037,1747257048514,-400.0,0.00011461,2]
[361102038,1747257048523,-400.0,0.00011461,2]
[361102039,1747257048532,-151.0,0.00011461,2]
[361102040,1747257048542,-400.0,0.00011461,2]
[361102041,1747257048552,-400.0,0.00011461,2]
[361102042,1747257048562,-411.97,0.00011461,2]
[361102043,1747257048571,-400.0,0.00011461,2]
[361102044,1747257048580,-400.01480561,0.00011461,2]
[361102045,1747257048591,-400.0,0.00011461,2]
[361102046,1747257048600,-400.0,0.00011461,2]
[361102047,1747257048610,-274.06353219,0.00011461,2]
[361102048,1747257048619,-400.0,0.00011461,2]
[361102049,1747257048629,-1346.47,0.00011461,2]
[361102050,1747257048639,-442.85353431,0.00011461,2]
[361102051,1747257048649,-400.0,0.00011461,2]
[361102052,1747257048663,-400.0,0.00011461,2]
[361102053,1747257048673,-311.5033953,0.00011461,2]
[361102054,1747257048682,-400.0,0.00011461,2]
[361102055,1747257048691,-400.0,0.00011461,2]
[361102056,1747257048700,-400.0,0.00011461,2]
[361102057,1747257048709,-400.0,0.00011461,2]
[361102058,1747257048719,-400.0,0.00011461,2]
[361102059,1747257048728,-400.0,0.00011461,2]
[361102060,1747257048737,-151.0,0.00011461,2]
[361102061,1747257048748,-400.0,0.00011461,2]
[361102062,1747257048758,-400.0,0.00011461,2]
[361102063,1747257048767,-400.0,0.00011461,2]
[361102064,1747257048776,-151.0,0.00011461,2]
[361102065,1747257048786,-400.0,0.00011461,2]
[361102066,1747257048796,-432.18,0.00011461,2]
[361102067,1747257048805,-400.0,0.00011461,2]
[361102068,1747257048814,-471.5,0.00011461,2]
[361102069,1747257048824,-151.0,0.00011461,2]
[361102070,1747257048833,-400.0,0.00011461,2]
[361102071,1747257048843,-411.15,0.00011461,2]
[361102072,1747257048852,-400.0,0.00011461,2]
[361102073,1747257048862,-1351.38,0.00011461,2]
[361102074,1747257048872,-400.0,0.00011461,2]
[361102075,1747257048882,-400.0,0.00011461,2]
[361102076,1747257048891,-411.83,0.00011461,2]
[361102077,1747257048901,-400.0,0.00011461,2]
[361102078,1747257048911,-210.86251594,0.00011461,2]
[361102081,1747257313582,564.98,8.712e-05,2]
[361102082,1747257379174,150.0,0.00010603,7]
[361102185,1747258231903,-364.19,0.00010396,2]
[361102187,1747258231913,-200.0,0.00010426,2]
[361102189,1747258231922,-500.0,0.00010457,2]
[361102191,1747258231931,-200.0,0.00010551,2]
[361102193,1747258231940,-200.0,0.0001056,2]
[361102195,1747258231950,-1000.0,0.00010644,2]
[361102196,1747258231959,-164.69,0.00010754,2]
[361102198,1747258231968,-400.0,0.000109,3]
[361102200,1747258231978,-150.0,0.00010959,2]
[361102202,1747258231988,-564.98,0.00010975,2]
[361102205,1747258231997,-280.09365989,0.00011026,2]
[361102207,1747258232008,-583.95710385,0.00011026,2]
[361102209,1747258232017,-200.01683819,0.00011086,2]
[361102211,1747258232026,-294.00552926,0.00011086,2]
[361102216,1747258232062,-230.85947074,0.00011086,2]
[361102218,1747258232072,-874.15068786,0.00011098,2]
[361102248,1747258237510,-325.84931214,0.00011098,2]
[361102250,1747258237520,-4045.03613071,0.00011099,2]
[361102251,1747258237529,-3559.51157208,0.00011099,2]
[361102252,1747258237539,-207.4,0.00011101,2]
[361102253,1747258237548,-172.455878,0.00011185,2]
[361102254,1747258237558,-400.0,0.00011185,2]
[361102255,1747258237567,-400.0,0.00011185,2]
[361102256,1747258237577,-400.0,0.00011185,2]
[361102257,1747258237586,-168.492818,0.00011185,2]
[361102258,1747258237595,-157.79637,0.00011185,2]
[361102259,1747258237605,-456.00191907,0.00011185,2]
[361102260,1747258237616,-1153.71619597,0.00011185,2]
[361102261,1747258237627,-375.11531255,0.00011185,2]
[361102262,1747258237661,-239.08657241,0.00011185,2]
[361102263,1747258237670,-978.42,0.00011185,2]
[361102264,1747258237679,-1032.88,0.00011185,2]
[361102265,1747258237689,-784.68,0.00011185,2]
[361102266,1747258237707,-237.22586777,0.00011185,2]
[361102286,1747258239801,-162.77413223,0.00011185,2]
[361102288,1747258239811,-1018.32,0.00011185,2]
[361102290,1747258239820,-1564.03,0.00011185,2]
[361102292,1747258239831,-400.0,0.00011185,2]
[361102294,1747258239841,-872.37,0.00011185,2]
[361102296,1747258239851,-400.0,0.00011185,2]
[361102298,1747258239862,-402.40726921,0.00011185,2]
[361102300,1747258239872,-731.23,0.00011185,2]
[361102302,1747258239882,-400.0,0.00011185,2]
[361102304,1747258239892,-401.82422972,0.00011185,2]
[361102306,1747258239902,-400.0,0.00011185,2]
[361102308,1747258239912,-400.0,0.00011185,2]
[361102310,1747258239922,-525.76,0.00011185,2]
[361102312,1747258239932,-603.54,0.00011185,2]
[361102315,1747258239941,-400.67326916,0.00011185,2]
[361102317,1747258239952,-543.43,0.00011185,2]
[361102319,1747258239962,-400.0,0.00011185,2]
[361102320,1747258239971,-544.7,0.00011185,2]
[361102321,1747258239981,-501.21935947,0.00011185,2]
[361102322,1747258239992,-400.0,0.00011185,2]
[361102323,1747258240002,-400.0,0.00011185,2]
[361102324,1747258240011,-533.21,0.00011185,2]
[361102325,1747258240021,-400.0,0.00011185,2]
[361102326,1747258240031,-400.0,0.00011185,2]
[361102327,1747258240042,-500.0,0.00011185,2]
[361102328,1747258240052,-451.41896647,0.00011185,2]
[361102329,1747258240061,-893.79,0.00011185,2]
[361102330,1747258240071,-554.84,0.00011185,2]
[361102331,1747258240081,-400.0,0.00011185,2]
[361102332,1747258240090,-400.0,0.00011185,2]
[361102333,1747258240099,-400.0,0.00011185,2]
[361102334,1747258240109,-991.53,0.00011185,2]
[361102335,1747258240119,-196.06,0.00011185,2]
[361102336,1747258240130,-2943.61,0.00011185,2]
[361102337,1747258240141,-400.0,0.00011185,2]
[361102338,1747258240151,-624.72,0.00011185,2]
[361102339,1747258240162,-526.31998621,0.00011185,2]
[361102340,1747258240173,-400.0,0.00011185,2]
[361102341,1747258240184,-400.0,0.00011185,2]
[361102342,1747258240195,-1083.57,0.00011185,2]
[361102343,1747258240205,-15057.70678753,0.00011185,2]
[361102344,1747258240252,-37098.2229118,0.00011185,2]
[361102345,1747258240264,-1076.21094039,0.00011185,2]
[361102346,1747258240277,-1712.94587026,0.00011185,2]
[361102368,1747258242387,-0.00945502,0.00011185,2]
[361102374,1747258243010,-808.28065077,0.00011185,2]
[361102376,1747258243456,-2157.61376995,0.00011185,2]
[361102377,1747258243468,-3067.19083382,0.00011185,2]
[361102378,1747258243479,-4911.77878046,0.00011185,2]
[361102379,1747258243488,-400.0,0.00011185,2]
[361102380,1747258243498,-543.7,0.00011185,2]
[361102381,1747258243508,-400.0,0.00011185,2]
[361102382,1747258243517,-5101.16,0.00011185,2]
[361102383,1747258243527,-400.64075811,0.00011185,2]
[361102384,1747258243537,-936.28,0.00011185,2]
[361102385,1747258243547,-1276.72,0.00011185,2]
[361102386,1747258243557,-710.92,0.00011185,2]
[361102387,1747258243567,-400.0,0.00011185,2]
[361102388,1747258243577,-500.0,0.00011185,2]
[361102389,1747258243587,-400.0,0.00011185,2]
[361102390,1747258243597,-400.20823459,0.00011185,2]
[361102391,1747258243607,-400.0,0.00011185,2]
[361102392,1747258243617,-400.0,0.00011185,2]
[361102393,1747258243626,-416.52,0.00011185,2]
[361102394,1747258243636,-400.0,0.00011185,2]
[361102395,1747258243645,-2299.55,0.00011185,2]
[361102396,1747258243655,-400.0,0.00011185,2]
[361102397,1747258243664,-679.44,0.00011185,2]
[361102398,1747258243675,-465.12,0.00011185,2]
[361102399,1747258243684,-400.0,0.00011185,2]
[361102400,1747258243694,-400.0,0.00011185,2]
[361102401,1747258243704,-1940.55,0.00011185,2]
[361102402,1747258243713,-400.0,0.00011185,2]
[361102403,1747258243723,-1948.53,0.00011185,2]
[361102404,1747258243732,-472.21,0.00011185,2]
[361102405,1747258243743,-589.86,0.00011185,2]
[361102406,1747258243753,-625.65,0.00011185,2]
[361102407,1747258243763,-1018.96,0.00011185,2]
[361102408,1747258243773,-3295.82,0.00011185,2]
[361102409,1747258243783,-1188.81,0.00011185,2]
[361102410,1747258243792,-1099.91,0.00011185,2]
[361102411,1747258243802,-400.0,0.00011185,2]
[361102412,1747258243813,-696.26,0.00011185,2]
[361102413,1747258243822,-400.0,0.00011185,2]
[361102414,1747258243832,-1040.75,0.00011185,2]
[361102415,1747258243842,-400.0,0.00011185,2]
[361102416,1747258243852,-400.0,0.00011186,2]
[361102417,1747258243862,-400.0,0.00011186,2]
[361102418,1747258243872,-400.0,0.00011186,2]
[361102419,1747258243881,-400.0,0.00011186,2]
[361102420,1747258243890,-400.0,0.00011186,2]
[361102421,1747258243900,-400.0,0.00011186,2]
[361102422,1747258243910,-400.0,0.00011186,2]
[361102423,1747258243919,-450.0,0.00011186,2]
[361102424,1747258243929,-400.0,0.00011186,2]
[361102425,1747258243939,-400.0,0.00011186,2]
[361102426,1747258243949,-400.0,0.00011186,2]
[361102427,1747258243958,-421.81,0.00011186,2]
[361102428,1747258243968,-400.0,0.00011186,2]
[361102429,1747258243978,-236.25,0.00011186,2]
[361102430,1747258243988,-400.0,0.00011186,2]
[361102431,1747258243999,-400.0,0.00011186,2]
[361102432,1747258244009,-400.0,0.00011186,2]
[361102433,1747258244019,-400.0,0.00011186,2]
[361102434,1747258244029,-480.65934466,0.00011186,2]
[361102435,1747258244039,-400.0,0.00011186,2]
[361102436,1747258244049,-357.04012463,0.00011186,2]
[361102437,1747258244059,-550.76,0.00011186,2]
[361102438,1747258244069,-400.0,0.00011186,2]
[361102439,1747258244079,-151.55344983,0.00011186,2]
[361102440,1747258244088,-400.0,0.00011186,2]
[361102441,1747258244097,-400.0,0.00011186,2]
[361102442,1747258244107,-160.30669121,0.00011186,2]
[361102443,1747258244117,-400.0,0.00011186,2]
[361102444,1747258244127,-400.0,0.00011186,2]
[361102445,1747258244137,-400.0,0.00011186,2]
[361102446,1747258244146,-400.0,0.00011186,2]
[361102447,1747258244156,-400.0,0.00011186,2]
[361102448,1747258244166,-824.46,0.00011186,2]
[361102449,1747258244177,-400.0,0.00011186,2]
[361102450,1747258244187,-400.0,0.00011186,2]
[361102451,1747258244196,-401.61,0.00011186,2]
[361102452,1747258244206,-400.0,0.00011186,2]
[361102453,1747258244215,-641.26,0.00011186,2]
[361102454,1747258244225,-400.0,0.00011186,2]
[361102455,1747258244234,-400.0,0.00011186,2]
[361102456,1747258244244,-400.0,0.00011186,2]
[361102457,1747258244257,-453.48,0.00011186,2]
[361102458,1747258244267,-521.94,0.00011186,2]
[361102459,1747258244277,-400.0,0.00011186,2]
[361102460,1747258244288,-492.09,0.00011186,2]
[361102461,1747258244298,-562.02,0.00011186,2]
[361102462,1747258244308,-400.0,0.00011186,2]
[361102463,1747258244317,-400.0,0.00011186,2]
[361102464,1747258244328,-400.0,0.00011186,2]
[361102465,1747258244337,-400.0,0.00011186,2]
[361102466,1747258244347,-400.0,0.00011186,2]
[361102467,1747258244357,-749.65,0.00011186,2]
[361102468,1747258244367,-200.0,0.00011186,2]
[361102469,1747258244377,-449.51,0.00011186,2]
[361102470,1747258244387,-400.0,0.00011186,2]
[361102471,1747258244396,-604.08,0.00011186,2]
[361102472,1747258244406,-400.0,0.00011186,2]
[361102473,1747258244415,-400.0,0.00011186,2]
[361102474,1747258244425,-400.0,0.00011186,2]
[361102475,1747258244435,-258.56900001,0.00011186,2]
[361102476,1747258244445,-487.5,0.00011186,2]
[361102477,1747258244455,-400.0,0.00011186,2]
[361102478,1747258244464,-413.83,0.00011186,2]
[361102479,1747258244474,-400.0,0.00011186,2]
[361102480,1747258244484,-400.0,0.00011186,2]
[361102481,1747258244494,-1979.46,0.00011186,2]
[361102482,1747258244504,-418.01,0.00011186,2]
[361102483,1747258244513,-400.0,0.00011186,2]
[361102484,1747258244523,-400.0,0.00011186,2]
[361102485,1747258244533,-566.15,0.00011186,2]
[361102486,1747258244542,-568.19,0.00011186,2]
[361102487,1747258244552,-400.0,0.00011186,2]
[361102488,1747258244562,-555.69,0.00011186,2]
[361102489,1747258244572,-401.1,0.00011186,2]
[361102490,1747258244581,-400.0,0.00011186,2]
[361102491,1747258244591,-555.52,0.00011186,2]
[361102492,1747258244601,-494.88,0.00011186,2]
[361102493,1747258244611,-400.0,0.00011186,2]
[361102494,1747258244621,-400.0,0.00011186,2]
[361102495,1747258244631,-400.0,0.00011186,2]
[361102496,1747258244641,-400.0,0.00011186,2]
[361102497,1747258244651,-758.18,0.00011186,2]
[361102498,1747258244661,-400.0,0.00011186,2]
[361102499,1747258244671,-400.0,0.00011186,2]
[361102500,1747258244680,-400.0,0.00011186,2]
[361102501,1747258244690,-400.0,0.00011186,2]
[361102502,1747258244700,-400.0,0.00011186,2]
[361102503,1747258244711,-400.0,0.00011186,2]
[361102504,1747258244720,-526.47,0.00011186,2]
[361102505,1747258244730,-400.0,0.00011186,2]
[361102506,1747258244739,-400.0,0.00011186,2]
[361102507,1747258244748,-400.0,0.00011186,2]
[361102508,1747258244758,-400.0,0.00011186,2]
[361102509,1747258244767,-400.0,0.00011186,2]
[361102510,1747258244776,-400.0,0.00011186,2]
[361102511,1747258244786,-500.8,0.00011186,2]
[361102512,1747258244795,-400.0,0.00011186,2]
[361102513,1747258244805,-400.0,0.00011186,2]
[361102514,1747258244814,-400.0,0.00011186,2]
[361102515,1747258244824,-400.0,0.00011186,2]
[361102516,1747258244834,-400.0,0.00011186,2]
[361102517,1747258244843,-492.67,0.00011186,2]
[361102518,1747258244854,-400.0,0.00011186,2]
[361102519,1747258244863,-400.0,0.00011186,2]
[361102520,1747258244872,-1450.75,0.00011186,2]
[361102521,1747258244882,-400.0,0.00011186,2]
[361102522,1747258244892,-695.31,0.00011186,2]
[361102523,1747258244901,-433.78,0.00011186,2]
[361102524,1747258244911,-1083.36,0.00011186,2]
[361102525,1747258244920,-400.0,0.00011186,2]
[361102526,1747258244930,-1461.19,0.00011186,2]
[361102527,1747258244940,-400.0,0.00011186,2]
[361102528,1747258244949,-400.0,0.00011186,2]
[361102529,1747258244959,-400.0,0.00011186,2]